Cogmind - Beta 9.6 *** ADVENTURER MODE // 2020.04.19 @ 14:50:36 Player: Plarzay Result: Destroyed by G-47 Trooper with Particle Gun Performance ------------- Evolutions (0) 0 Regions Visited (2) 400 Robots Destroyed (43) 215 Value Destroyed (587) 587 Prototype IDs (0) 0 Alien Tech Used (0) 0 Bonus (-80) -80 TOTAL SCORE: 1122 Bonus ------- Follower Combat Kills 46 Friendly Fire -126 Cogmind --------- Core Integrity 0/250 Matter 214/300 Energy 100/100 System Corruption 1% Temperature Cool (9) Movement Walking (120) Location -10/Mines Parts ------- > --- POWER (1) -------- (None) > --- PROPULSION (2) --- Aluminum Leg > --- UTILITY (2) ------ Targeting Computer Core Shielding > --- WEAPON (2) ------- Light Assault Rifle > --- INVENTORY (4) ---- Heat Sink High-capacity Storage Unit Grenade Launcher Grenade Launcher Peak State ------------ > --- POWER ------------ Ion Engine > --- PROPULSION ------- Light Treads Light Treads > --- UTILITY ---------- Small Storage Unit Visual Processing Unit > --- WEAPON ----------- Assault Rifle Assault Rifle > --- INVENTORY -------- Ion Engine Aluminum Leg Aluminum Leg Light Assault Rifle Light Assault Rifle [Rating: 8] Favorites ----------- Power Ion Engine Engine Ion Engine Propulsion Light Treads Treads Light Treads Leg Aluminum Leg Flight Unit Flight Unit Utility Targeting Computer Storage Small Storage Unit Processor Targeting Computer Protection Core Shielding Weapon Assault Rifle Ballistic Gun Assault Rifle Launcher Grenade Launcher Special Weapon Mining Laser Build | -11 -10 -10 ------- Run | Scr Mat Min Slots Evolved . | . . . Power . | . . . Propulsion . | . . . Utility . | . . . Weapon . | . . . Parts Attached 22 | 7 4 11 Power 2 | 1 . 1 Engine 2 | 1 . 1 Core . | . . . Reactor . | . . . Propulsion 5 | 2 . 3 Treads 3 | 2 . 1 Leg 1 | . . 1 Wheel . | . . . Hover . | . . . Flight 1 | . . 1 Utility 5 | 1 3 1 Device . | . . . Storage 2 | 1 1 . Processor 2 | . 2 . Hackware . | . . . Protection 1 | . . 1 Artifact . | . . . Weapon 10 | 3 1 6 Energy Gun . | . . . Energy Cannon . | . . . Ballistic Gun 7 | 3 1 3 Ballistic Cannon . | . . . Launcher 2 | . . 2 Special Weapon 1 | . . 1 Impact Weapon . | . . . Slashing Weapon . | . . . Piercing Weapon . | . . . Special Melee Weapon . | . . . Unidentified Prototypes . | . . . Parts Lost 9 | . . 9 Power 2 | . . 2 Propulsion 3 | . . 3 Utility . | . . . Weapon 4 | . . 4 Highest Loss Streak 8 | . . 8 Average Slot Usage (%) 94 | . 97 91 Engine 13 | . 14 11 Treads 25 | . 28 23 Storage 13 | . 14 12 Processor 12 | . 12 14 Ballistic Gun 19 | . 28 8 Launcher 7 | . . 16 Naked Turns . | . . . Heaviest Build 43 | 12 41 43 Greatest Support 40 | 40 40 40 Greatest Overweight (x) 10 | . 1 10 Average Overweight (x) . | . . . Largest Inventory Capacity 12 | 6 12 12 Average Capacity 8 | 5 6 10 Most Carried 12 | 5 11 12 Average Carried 7 | 2 5 10 Final Capacity 12 | 6 12 4 Final Carried 11 | 4 11 4 Class Distribution -------------------- 100% | Mutant Dominant Class ---------------- Mutant | -10/Materials Mutant | -10/Mines Resources | -11 -10 -10 ----------- Run | Scr Mat Min Matter Collected 721 | 234 261 226 Remotely . | . . . Salvage Created 785 | . 541 244 Parts 54 | . 36 18 Haulers Intercepted 2 | . 2 . Recyclers Shooed . | . . . Parts Field Recycled . | . . . Retrieved Matter . | . . . Parts Self-Destructed . | . . . Prevented . | . . . Kills | -11 -10 -10 ------- Run | Scr Mat Min Combat Hostiles Destroyed 38 | . 16 22 Guns 19 | . 16 3 AOE 19 | . . 19 Classes Destroyed 6 | . 4 2 Tunneler 1 | . . 1 Hauler 2 | . 2 . Watcher 1 | . 1 . Swarmer 15 | . 9 6 Grunt 12 | . 7 5 Assembled 12 | . . 12 Best Kill Streak 15 | . 8 15 Combat Bots Only 14 | . 8 14 Max Kills in Single Turn 5 | . 2 5 Gunslinging 1 | . 1 . Exploded 5 | . . 5 Melee . | . . . Uniques/NPCs Destroyed . | . . . Combat | -11 -10 -10 -------- Run | Scr Mat Min Damage Taken 1208 | . 299 909 Core 253 | . 23 230 Absorbed by Shields . | . . . Core Remaining (%) 100 | 100 . . Volleys Fired 70 | . 37 33 Largest 2 | . 2 2 Hottest 60 | . 40 60 Shots Fired 116 | . 74 42 Gun 98 | . 74 24 Cannon . | . . . Launcher 18 | . . 18 Special . | . . . Kinetic 98 | . 74 24 Thermal . | . . . Explosive 18 | . . 18 Electromagnetic . | . . . Robot Hit Streak 23 | . 17 23 Robot Miss Streak 5 | . 5 1 Penetration Max . | . . . Secondary Targets 5 | . 5 . Max Gunslinging Chain 1 | . 1 . Shots Hit Robots 87 | . 59 28 Core Hits 87 | . 28 59 Critical Hits 1 | . . 1 Critical Kills . | . . . Critical Parts Destroyed 1 | . . 1 Melee Attacks . | . . . Impact . | . . . Slashing . | . . . Piercing . | . . . Sneak Attacks . | . . . Combat Hostiles . | . . . Follow-up Attacks . | . . . Damage Inflicted 2164 | . 621 1543 Guns 850 | . 621 229 Cannons . | . . . Explosions 1314 | . . 1314 Melee . | . . . Ramming . | . . . Kinetic 850 | . 621 229 Thermal . | . . . Explosive 1314 | . . 1314 Electromagnetic . | . . . Impact . | . . . Slashing . | . . . Piercing . | . . . Highest Corruption 1 | . 1 1 Average Corruption 1 | . 1 1 Corruption Purged . | . . . Effects 5 | . . 5 Energy Discharges 1 | . . 1 Data Loss (minor) 3 | . . 3 Targeting Errors 1 | . . 1 Overload Shots . | . . . Overflow Damage 46 | . . 46 Projectiles . | . . . Explosions 46 | . . 46 Melee . | . . . Knockbacks . | . . . Impact . | . . . Kinetic . | . . . Secondary . | . . . Self-Inflicted Damage 69 | . . 69 Shots 4 | . . 4 Rammed . | . . . Targets Rammed . | . . . Kicked . | . . . Crushed . | . . . Highest Temperature 4 | . . 4 Average Temperature 2 | . . 2 Received Heat Transfer 114 | . 36 78 Siege Activations . | . . . Robots Corrupted . | . . . Combat Hostiles . | . . . Parts Fried . | . . . Impact Corruptions . | . . . Robots Melted . | . . . Combat Hostiles . | . . . Parts Melted . | . . . Heat Transferred . | . . . Parts Sabotaged . | . . . Parts Stolen . | . . . Parts Stripped . | . . . Power Chain Reactions . | . . . Missiles Intercepted . | . . . Alert | -11 -10 -10 ------- Run | Scr Mat Min Peak Influence 338 | . 338 266 Average Influence 143 | . 176 117 Maximum Alert Level 1 | . 1 1 Low Security (%) 70 | 100 55 86 Level 1 29 | . 44 13 Level 2 . | . . . Level 3 . | . . . Level 4 . | . . . Level 5 . | . . . High Security . | . . . Max Security . | . . . Squads Dispatched 3 | . 3 . Investigation 3 | . 3 . Extermination . | . . . Reinforcement . | . . . Assault . | . . . Garrison . | . . . Intercept . | . . . Construction Impeded . | . . . Haulers Reinforced . | . . . Stealth | -11 -10 -10 --------- Run | Scr Mat Min Distress Signals . | . . . Communications Jammed . | . . . Distress Signals . | . . . Times Spotted 50 | . 19 31 Peak Tracking Total 14 | . 4 14 Tactical Retreats 2 | . . 2 Traps | -11 -10 -10 ------- Run | Scr Mat Min Traps Triggered 4 | . 4 . Indirectly . | . . . Trap Hack Attempts . | . . . Triggered . | . . . Disarmed . | . . . Reprogrammed . | . . . Reused . | . . . Traps Extracted . | . . . Installed . | . . . Triggered . | . . . Machines | -11 -10 -10 ---------- Run | Scr Mat Min Machines Disabled 1 | . . 1 Max in Single Turn 1 | . . 1 Machines Sabotaged . | . . . Garrisons Compromised . | . . . Overloaded Fab Kills . | . . . Fab Network Shutdowns . | . . . Hacking | -11 -10 -10 --------- Run | Scr Mat Min Machines Accessed 4 | . 4 . Terminals 4 | . 4 . Fabricators . | . . . Repair Stations . | . . . Recycling Units . | . . . Scanalyzers . | . . . Garrison Access . | . . . Total Hacks 16 | . 16 . Successful 10 | . 10 . Failed 6 | . 6 . Catastrophic 1 | . 1 . Database Lockouts . | . . . Manual 13 | . 13 . Terminals 16 | . 16 . Fabricators . | . . . Repair Stations . | . . . Recycling Units . | . . . Scanalyzers . | . . . Garrison Access . | . . . Terminal Hacks 4 | . 4 . Part Schematic 1 | . 1 . Branch Access Points 1 | . 1 . Machine Index 1 | . 1 . Registered Components 1 | . 1 . Fabricator Hacks . | . . . Repair Station Hacks . | . . . Recycling Unit Hacks . | . . . Scanalyzer . | . . . Garrison Access Hacks . | . . . Unauthorized Hacks 6 | . 6 . Terminals 6 | . 6 . Track 2 | . 2 . Botnet 4 | . 4 . Fabricators . | . . . Repair Stations . | . . . Recycling Units . | . . . Scanalyzers . | . . . Garrison Access . | . . . Data Cores Recovered . | . . . Used . | . . . Hacking Detections 2 | . 2 . Full Trace Events 2 | . 2 . Feedback Events 1 | . 1 . Corruption 1 | . 1 . Feedback Blocked . | . . . Robot Schematics Acquired . | . . . Robots Built . | . . . Matter . | . . . Time . | . . . Total Robot Build Rating . | . . . Part Schematics Acquired 1 | . 1 . Parts Built . | . . . Matter . | . . . Time . | . . . Total Part Build Rating . | . . . Parts Repaired . | . . . Time . | . . . Parts Recycled . | . . . Recycled Matter . | . . . Retrieved Matter . | . . . Retrieved Components . | . . . Parts Scanalyzed . | . . . Part Schematics Acquired . | . . . Parts Damaged . | . . . Bothacking | -11 -10 -10 ------------ Run | Scr Mat Min Used RIF Installer . | . . . Robots Hacked . | . . . Non-combat . | . . . Combat . | . . . Robot Hacks Applied . | . . . Relay Couplers Released . | . . . Robots Rewired . | . . . Allies Hacked . | . . . Hacks Repelled . | . . . Allies | -11 -10 -10 -------- Run | Scr Mat Min Total Allies 3 | . . 3 Largest Group 3 | . . 3 Highest-Rated Group 40 | . . 40 Highest-Rated Ally 16 | . . 16 Total Orders . | . . . Ally Attacks 21 | . . 21 Total Damage 216 | . . 216 Kills 6 | . . 6 Allies Corrupted . | . . . Allies Melted . | . . . Intel | -11 -10 -10 ------- Run | Scr Mat Min Robot Analysis Total . | . . . Derelict Logs Recovered 1 | . . 1 Drone Launches . | . . . Drone Recoveries . | . . . Exploration | -11 -10 -10 ------------- Run | Scr Mat Min Turns Passed 1688 | 67 873 748 Spaces Moved 969 | 34 456 479 Core 17 | 3 . 14 Treads 799 | 31 456 312 Legs 14 | . . 14 Wheels . | . . . Hover . | . . . Flight 139 | . . 139 Fastest Speed 40 | 50 160 40 Average Speed 148 | 150 160 136 Slowest Speed 550 | 160 180 550 Overloaded Moves . | . . . Propulsion Burnouts . | . . . Robots Hopped . | . . . Cave-ins Triggered . | . . . Exploration Rate (%) 56 | 4 71 93 Regions Visited 2 Branch Regions 1 Pre-discovered Areas 2 | . . 2 Known Exits Taken 1 | . 1 . Unknown Exits Taken 1 | 1 . . Scrap Searched 1 | . . 1 Spaces Dug . | . . . Terrain Destroyed 76 | . . 76 Melee . | . . . Projectile . | . . . AOE 76 | . . 76 Actions | -11 -10 -10 --------- Run | Scr Mat Min Total 1110 | 50 527 533 Wait 18 | . 13 5 Move 967 | 33 455 479 Hop . | . . . Pick Up 24 | 10 12 2 Fast Attach 5 | . 1 4 Attach 11 | 6 1 4 Detach . | . . . Swap 6 | 1 2 3 Drop 9 | . 6 3 Fire 70 | . 37 33 Melee . | . . . Ram . | . . . Kick . | . . . Crush . | . . . Escape Stasis . | . . . Rewire . | . . . Trap . | . . . Miscellaneous . | . . . Route ------- -11/Scrapyard -10/Materials (discovered 4 exits: [*Mat x2] / *Min x2) -10/Mines (discovered 2 exits: [*Mat x2]) History --------- Turn | Location | Event 43 | -11/Scrapyard | Discovered new exit (range 15) 68 | -11/Scrapyard | Entered Materials 127 | -10/Materials | Discovered new exit (range 12) 304 | -10/Materials | Build established: Mutant 329 | -10/Materials | Destroyed 8 combat bots 329 | -10/Materials | Discovered new exit (range 3) 731 | -10/Materials | Discovered new exit (range 12) 753 | -10/Materials | Identified exit to Mines 941 | -10/Materials | Entered Mines 945 | -10/Mines | Assisted by bots powering up and referring to "LRC-V3" 1037 | -10/Mines | Discovered new exit (range 9) 1254 | -10/Mines | Assembled infested the area 1306 | -10/Mines | Destroyed 14 combat bots 1374 | -10/Mines | Discovered new exit (range 5) 1392 | -10/Mines | Learned location of Storage (-9) 1575 | -10/Mines | Core integrity fell below 50% 1581 | -10/Mines | Core integrity fell below 20% 1607 | -10/Mines | Lost 8 parts (2p2n4w) 1689 | -10/Mines | Destroyed by G-47 Trooper with Particle Gun Last Messages --------------- 01594_ Acquired 9 matter. 01599_ The unstable cave ceiling collapses. 01600_ K-01 Serf collects debris. 01623_ The unstable cave ceiling collapses. 01624_ Searching scrap... 01624_ Found 50 Matter. 01624_ Found Hcp. Matter Pod. 01624_ Found Aluminum Leg. 01624_ Found Lgt. Assault Rifle. 01624_ Found Med. Matter Pod. 01624_ Acquired Lgt. Assault Rifle. 01660_ G-34 Mercenary destroyed. 01663_ Acquired 50 matter. 01664_ U-05 Engineer builds a Wall. 01664_ Acquired Aluminum Leg. 01665_ Dropped Flight Unit. 01668_ U-05 Engineer lays Concrete. 01669_ U-05 Engineer builds a Wall. 01688_ System corrupted: Component data lost. 01689_ U-05 Engineer lays Concrete. Map ----- +----------------------------------------------------+ | | | | | | | | | | | | | | | ???????????????????????????????????????????????? | | ???????????????????????????????????????????????? | | ???????????????????????????????????????????????? | | ???????????????????????????????????????????????? | | ???????????????????????????????????????????????? | | ???????????????????????????????????????????????? | | ???????????????????????????????????????????????? | | ?????????????????????????????####??????????????? | | ????????????????????????????# ##?????????????? | | ???????????????????????????# #?????????????? | | ?????????????????#####?#### #?????????????? | | ????????????????## ### #?????????????? | | ????????????????# #?????????????? | | ??#######???????# #?????????###??? | | ?## #??##### = #?????????# ##?? | | ?# ### ##u = ##????????# ##? | | ?# # # = ###???????## ## | | ?# ## ## * ##??????#### # | | ??# #### @ = #?????## #? | | ????# # = ######## #??? | | ????## ## [ ## #???? | | ????## ### ### # #????? | | ????# # # ####### ## #????? | | ????# ## ###?????## #### ##???? | | ????##" #########??????# #??# ##??? | | ?????### ##???## ##?????# g #?# #??? | | ???????##= #???## ##????# #?# ##?? | | ????????# #?### ###???## ## ##?# ##? | | ????????# #### #????########??## ## | | ????????# ## ##??????????????## # | | ????????# ## | # ##????????###### | | ????????# %### # #???????## | | ????????# #### # # ##???????# | | ????????####### # # #???????# | | ??????????????#### # # ##???????## ## | | ?????????????????# # ###?????????###?### | | ?????????????????### ######????????????## | | ??????????????????# ## ##????????????### | | ??????????????????# ##?????????????###### | | ??????????????????# ### #??????????????????? | | ??????????????????# #?## #??????????????????? | | ?????????????###### #??## ##?????????????????? | | ?????????????# #???## ##????????????????? | +----------------------------------------------------+ Best States ------------- Heat Dissipation 25 Energy Generation 10 Energy Capacity 250 Matter Stores 300 Matter Capacity 300 Sight Range 18 Terrain Scan Density 10 Resistance: KI 20 Resistance: TH 20 Resistance: EX 20 Resistance: EM 20 Resistance: I 20 Resistance: S 20 Resistance: P 20 Core Shielding 20 Evasion (%) 62 Targeting Accuracy 5 Recoil Reduction 2 Offensive Hacking 10 Item Schematics ----------------- Hcp. Storage Unit | -10/Materials | Hacked Robot Schematics ------------------ None Fabricated ------------ Nothing Alien Tech Used ----------------- None Achievements -------------- None Challenges ------------ None Game ------ Seed ShieldCoolantJammer Manual? 0 Play Time 00:20:49 Cumulative 34.7 hours Start 2020.04.19 @ 14:30:35 End 2020.04.19 @ 14:50:36 Sessions 1 Manual Loads 0 Difficulty Adventurer Special Mode None Game No. 24 Rogue 10 Adventurer 14 Explorer 0 Win Type - Total 0 Types 0/0/0/0/0/0/0 Lore% 28 Gallery% 40 Achievement% 29 Wizard Run 0 Options --------- ASCII 0 Keyboard 0 Movement Mouse Keybinds 0 Fullscreen 1 Font 18/SmallcapsGlow Map View 76x50 Tactical HUD 1 Map Filters NONE Filters NONE Steam 1 RUN: d662a79e-9556-44f5-ac07-7ca8aca706bc